bitfinex-derivatives/quotes_BTCF0:USTF0_20250728
["timestamp","ask_amount","ask_price","bid_price","bid_amount"]
[1753721618694,0.300319,118130.0,118120.0,1.1850902]
[1753721619796,0.300319,118130.0,118120.0,1.1870902]
[1753721619797,0.301319,118130.0,118120.0,1.1870902]
[1753721620694,0.001,118130.0,118120.0,1.62008412]
[1753721620994,0.002,118130.0,118120.0,1.88298412]
[1753721621391,0.1713058,118130.0,118120.0,1.71366392]
[1753721621597,0.79874472,118130.0,118120.0,1.28043]
[1753721622196,0.3657508,118130.0,118120.0,1.30245609]
[1753721622800,0.79874472,118130.0,118120.0,1.30245609]
[1753721627408,0.79874472,118130.0,118120.0,1.47177619]
[1753721627702,0.79874472,118130.0,118120.0,1.30245609]
[1753721627908,0.81318186,118130.0,118120.0,1.30245609]
[1753721628109,0.81318186,118130.0,118120.0,1.28043]
[1753721628311,0.84564186,118130.0,118120.0,1.4497501]
[1753721628898,0.41264794,118130.0,118120.0,1.4497501]
[1753721629509,0.41264794,118130.0,118120.0,1.28043]
[1753721629710,0.41264794,118130.0,118120.0,1.4497503]
[1753721630510,0.52832794,118130.0,118120.0,1.28043]
[1753721631105,0.66011794,118130.0,118120.0,1.4497503]
[1753721631612,0.66011794,118130.0,118120.0,1.28043]
[1753721631911,1.09311186,118130.0,118120.0,1.28043]
[1753721632312,0.38018814,118130.0,118120.0,1.88274432]
[1753721632604,0.16453214,118130.0,118120.0,1.88274432]
[1753721632809,0.1692934,118140.0,118130.0,0.169306]
[1753721633012,0.2180534,118140.0,118130.0,1.21812747]
[1753721634011,0.2190534,118140.0,118130.0,1.21812747]
[1753721635007,0.2210534,118140.0,118130.0,1.21912747]
[1753721635202,0.05176,118140.0,118130.0,1.21912747]
[1753721635410,0.2538691,118180.0,118170.0,0.1692487]
[1753721635608,0.07565659,118180.0,118170.0,1.69317262]
[1753721635804,0.1692344,118180.0,118170.0,1.01093262]
[1753721636007,0.1692344,118180.0,118170.0,1.52428392]
[1753721636214,0.1692344,118180.0,118170.0,1.69353262]
[1753721637415,0.3660894,118180.0,118170.0,1.69353262]
[1753721637716,0.75332332,118180.0,118170.0,0.97367]
[1753721637915,1.16638332,118180.0,118170.0,1.09225]
[1753721638215,1.16338332,118180.0,118170.0,1.09225]
[1753721638405,1.16038332,118180.0,118170.0,1.09225]
[1753721638811,1.16038332,118180.0,118170.0,1.09261]
[1753721639115,1.16038332,118180.0,118170.0,0.29211]
[1753721639312,1.16038332,118180.0,118170.0,0.76538]
[1753721639611,1.16038332,118180.0,118170.0,0.68388]
[1753721639816,1.16038332,118180.0,118170.0,0.68404]
[1753721640013,1.16038332,118180.0,118170.0,0.001]
[1753721640409,1.16038332,118180.0,118170.0,0.68396]
[1753721640820,1.23548615,118180.0,118170.0,0.68396]
[1753721641213,1.31114274,118180.0,118170.0,0.68396]
[1753721641405,1.31114274,118180.0,118170.0,0.75164447]
[1753721644816,1.32523591,118180.0,118170.0,0.75164447]
[1753721645022,1.24957932,118180.0,118170.0,0.75164447]
[1753721645610,1.31030404,118180.0,118170.0,0.75164447]
[1753721646513,1.24957932,118180.0,118170.0,0.75164447]
[1753721649621,1.24957932,118180.0,118170.0,0.75180447]
[1753721651625,1.2494384,118180.0,118170.0,0.75180447]
[1753721652523,1.2494384,118180.0,118170.0,0.88053447]
[1753721652725,1.2494384,118180.0,118170.0,0.75180447]
[1753721652926,1.2494384,118180.0,118170.0,0.06868447]
[1753721653120,1.2494384,118180.0,118170.0,0.75136447]
[1753721653524,1.2494384,118180.0,118170.0,0.83286447]
[1753721653725,1.2494384,118180.0,118160.0,0.11758]
[1753721653726,0.1692774,118150.0,118140.0,0.39277782]
[1753721653925,0.27863965,118150.0,118140.0,1.36068214]
[1753721654119,0.35052965,118150.0,118140.0,1.36068214]
[1753721654319,0.35052965,118150.0,118140.0,1.56467024]
[1753721654621,1.0973864,118150.0,118140.0,0.55401]
[1753721654819,1.60548315,118150.0,118140.0,1.09125]
[1753721655014,1.0973864,118150.0,118140.0,1.09125]
[1753721655216,1.0983864,118150.0,118140.0,1.16269624]
[1753721655425,1.2464814,118150.0,118140.0,1.16269624]
[1753721656020,1.2474814,118150.0,118140.0,1.16069624]
[1753721656223,1.2484814,118150.0,118140.0,1.16169624]
[1753721656618,1.2494814,118150.0,118140.0,1.16169624]
[1753721656820,1.2494814,118150.0,118140.0,0.23282624]
[1753721657026,1.2494814,118150.0,118140.0,0.75304624]
[1753721657327,1.2494814,118150.0,118140.0,0.99481624]
[1753721657527,1.2494814,118150.0,118140.0,1.06614624]
[1753721657924,1.2494814,118150.0,118140.0,0.38354624]
[1753721657925,1.31020612,118150.0,118140.0,0.38354624]
[1753721658129,1.31020612,118150.0,118140.0,1.16153624]
[1753721658727,0.39604937,118150.0,118140.0,0.98723299]
[1753721658922,0.8900714,118150.0,118140.0,0.47913624]
[1753721659128,1.2494814,118150.0,118140.0,1.16165624]
[1753721659628,0.33532465,118150.0,118140.0,1.16165624]
[1753721660029,0.46224465,118150.0,118140.0,1.16213624]
[1753721660230,1.2494814,118150.0,118140.0,1.16221624]
[1753721660424,1.31020612,118150.0,118140.0,1.16221624]
[1753721660830,1.31020612,118150.0,118140.0,1.11596624]
[1753721661030,1.31020612,118150.0,118140.0,1.04463624]
[1753721662125,1.31020612,118150.0,118140.0,1.11596624]
[1753721662633,1.31020612,118150.0,118140.0,1.16562624]
[1753721662829,1.23582069,118150.0,118140.0,1.16562624]
[1753721665934,1.17509597,118150.0,118140.0,1.16562624]
[1753721669434,1.17509597,118150.0,118140.0,1.11596624]
[1753721669941,1.17509597,118150.0,118140.0,0.86656624]
[1753721670136,1.17509597,118150.0,118140.0,0.07044624]
[1753721670440,0.5808856,118130.0,118120.0,0.41084]
[1753721670641,1.02854917,118130.0,118120.0,1.09304]
[1753721671743,0.47281785,118130.0,118120.0,1.09304]
[1753721671943,0.31575785,118130.0,118120.0,1.09304]
[1753721672537,0.74946917,118130.0,118120.0,1.09304]
[1753721673045,0.94451917,118130.0,118120.0,1.15993074]
[1753721673250,1.03154917,118130.0,118120.0,1.16093074]
[1753721673547,1.03154917,118130.0,118120.0,1.16129074]
[1753721673742,1.03254917,118130.0,118120.0,1.16129074]
[1753721675250,1.03354917,118130.0,118120.0,1.16029074]
[1753721675443,1.18164417,118130.0,118120.0,1.16029074]
[1753721678745,1.18164417,118130.0,118120.0,0.06689074]
[1753721678944,1.18164417,118130.0,118120.0,0.92342]
[1753721679245,0.1693199,118120.0,118110.0,0.2411]
[1753721679451,1.02856347,118120.0,118110.0,1.09336]
[1753721680337,1.17765847,118120.0,118110.0,1.09336]
[1753721681152,1.17865847,118120.0,118110.0,1.09336]
[1753721682057,1.17865847,118120.0,118110.0,1.16049715]
[1753721683454,1.61236979,118120.0,118110.0,0.74997715]
[1753721683643,1.61236979,118120.0,118110.0,0.68284]
[1753721683839,1.17865847,118120.0,118110.0,1.04402]
[1753721684051,1.17865847,118120.0,118110.0,1.09368]
[1753721684852,1.23938319,118120.0,118110.0,1.09368]
[1753721686254,1.23938319,118120.0,118110.0,1.16081364]
[1753721693459,1.23938319,118120.0,118110.0,0.47797364]
[1753721693659,1.23938319,118120.0,118110.0,1.16121364]
[1753721695962,1.17865847,118120.0,118110.0,1.16121364]
[1753721696356,1.23938319,118120.0,118110.0,1.16121364]
[1753721696757,1.23938319,118120.0,118110.0,0.47797364]
[1753721696962,1.23938319,118120.0,118110.0,1.16113364]
[1753721699467,1.11105319,118120.0,118110.0,1.16113364]
[1753721699668,1.23283319,118120.0,118110.0,1.16113364]
[1753721700063,1.23283319,118120.0,118110.0,0.30004364]
[1753721700264,1.23283319,118120.0,118110.0,1.10474364]
[1753721700462,1.23283319,118120.0,118110.0,0.42150364]
[1753721700767,1.23283319,118120.0,118110.0,1.15291364]
[1753721702570,1.03828319,118120.0,118110.0,1.15291364]
[1753721702764,1.23283319,118120.0,118110.0,1.15291364]
[1753721703263,1.17210847,118120.0,118110.0,1.15291364]
[1753721703469,1.17210847,118120.0,118110.0,0.41957364]
[1753721703666,1.60581979,118120.0,118110.0,0.41957364]
[1753721703865,1.60581979,118120.0,118110.0,0.30043364]
[1753721704061,1.60581979,118120.0,118110.0,0.98543364]
[1753721704570,1.17210847,118120.0,118110.0,1.05676364]
[1753721704870,1.66670586,118120.0,118110.0,1.10650364]
[1753721705472,1.23299454,118120.0,118110.0,1.10650364]
[1753721707175,1.23299454,118120.0,118110.0,0.75213364]
[1753721707375,1.66670586,118120.0,118110.0,0.75213364]
[1753721707874,1.66670586,118120.0,118110.0,0.95391364]
[1753721708867,1.66670586,118120.0,118110.0,0.98543364]
[1753721709375,1.66670586,118120.0,118110.0,1.05676364]
[1753721710070,1.66670586,118120.0,118110.0,0.04109614]
[1753721710271,1.66670586,118120.0,118110.0,0.68428]
[1753721710471,1.60581979,118120.0,118110.0,0.68428]
[1753721711176,0.5743642,118110.0,118100.0,0.40218]
[1753721711370,1.08295033,118110.0,118100.0,1.08642]
[1753721712077,1.08295033,118110.0,118100.0,0.40218]
[1753721712274,1.08295033,118110.0,118100.0,1.08638]
[1753721712464,1.08395033,118110.0,118100.0,1.12888681]
[1753721712866,1.09868436,118110.0,118100.0,1.19664667]
[1753721713677,1.10068436,118110.0,118100.0,1.19664667]
[1753721714979,1.08597225,118110.0,118100.0,1.19664667]
[1753721715370,1.23406725,118110.0,118100.0,1.19664667]
[1753721715976,1.17312277,118110.0,118100.0,1.19664667]
[1753721717879,0.73941145,118110.0,118100.0,1.19664667]
[1753721718078,1.17312277,118110.0,118100.0,1.19664667]
[1753721718773,0.39532812,118110.0,118100.0,1.63035799]
[1753721719272,0.33438145,118110.0,118100.0,1.19664667]
[1753721719988,0.85013277,118110.0,118100.0,1.19664667]
[1753721720276,0.89553277,118110.0,118100.0,1.45954667]
[1753721721586,0.33438145,118110.0,118100.0,1.62889537]
[1753721721976,0.39532812,118110.0,118100.0,2.06260669]
[1753721722782,0.39532812,118110.0,118100.0,1.62889537]
[1753721723687,0.39532812,118110.0,118100.0,2.06260669]
[1753721724587,0.39532812,118110.0,118100.0,1.89325799]
[1753721724783,1.23645944,118110.0,118100.0,1.45954667]
[1753721724995,1.23645944,118110.0,118100.0,0.77534667]
[1753721725284,1.23645944,118110.0,118100.0,1.46202667]
[1753721726081,1.17551277,118110.0,118100.0,1.19912667]
[1753721726989,1.23647376,118110.0,118100.0,1.19912667]
[1753721730490,0.39534244,118110.0,118100.0,1.80218669]
[1753721731887,0.39534244,118110.0,118100.0,2.06508669]
[1753721732794,0.33438145,118110.0,118100.0,2.06508669]
[1753721733189,0.33438145,118110.0,118100.0,1.89573799]
[1753721733390,0.33438145,118110.0,118100.0,2.06508679]
[1753721733584,0.33438145,118110.0,118100.0,1.89573799]
[1753721734291,0.33438145,118110.0,118100.0,1.46202667]
[1753721735088,1.17551277,118110.0,118100.0,1.46202667]
[1753721735593,1.17551277,118110.0,118100.0,0.77534667]
[1753721735890,1.17551277,118110.0,118100.0,1.34095667]
[1753721736091,1.23646538,118110.0,118100.0,1.34095667]
[1753721736786,1.23646538,118110.0,118100.0,1.46204667]
[1753721736993,1.23646538,118110.0,118100.0,0.48599667]
[1753721737188,1.23646538,118110.0,118100.0,1.17275667]
[1753721737389,1.23646538,118110.0,118100.0,1.29366667]
[1753721737584,1.23646538,118110.0,118100.0,1.36499667]
[1753721737793,1.23646538,118110.0,118100.0,1.15185667]
[1753721739598,1.17551277,118110.0,118100.0,1.15185667]
[1753721739989,1.23645099,118110.0,118100.0,1.15185667]
[1753721740189,1.23645099,118110.0,118100.0,0.46418667]
[1753721740585,1.23645099,118110.0,118100.0,1.15042667]
[1753721741192,1.23645099,118110.0,118100.0,1.20018667]
[1753721742898,1.23645099,118110.0,118100.0,1.19990667]
[1753721744895,1.23645049,118110.0,118100.0,1.19990667]
[1753721745896,1.23769692,118110.0,118100.0,1.19990667]
[1753721746902,1.23769692,118110.0,118100.0,0.51394667]
[1753721747100,1.23769692,118110.0,118100.0,1.19954667]
[1753721747302,1.23769692,118110.0,118100.0,0.51394667]
[1753721747500,0.92303692,118110.0,118100.0,1.19946667]
[1753721748005,0.7190656,118110.0,118100.0,1.19946667]
[1753721748507,1.0918392,118110.0,118100.0,1.19946667]
[1753721748701,0.74304788,118110.0,118100.0,1.19946667]
[1753721750605,1.1767592,118110.0,118100.0,1.19946667]
[1753721750809,0.33562788,118110.0,118100.0,1.19946667]
[1753721751005,0.38264788,118110.0,118100.0,1.19946667]
[1753721751506,0.49762788,118110.0,118100.0,1.19946667]
[1753721752301,0.64646788,118110.0,118100.0,1.19946667]
[1753721753006,0.73054788,118110.0,118100.0,1.19946667]
[1753721754012,1.1642592,118110.0,118100.0,1.19946667]
[1753721754909,1.23991579,118110.0,118100.0,0.87980497]
[1753721755213,1.23991579,118110.0,118100.0,0.79494667]
[1753721756109,1.22518075,118110.0,118100.0,0.79494667]
[1753721756918,1.22518075,118110.0,118100.0,1.18889667]
[1753721761519,1.36578075,118110.0,118100.0,1.18889667]
[1753721766822,1.3048592,118110.0,118100.0,1.18889667]
[1753721767016,1.38051579,118110.0,118100.0,1.18889667]
[1753721770025,1.3048592,118110.0,118100.0,1.18889667]
[1753721775029,1.36581125,118110.0,118100.0,1.18889667]
[1753721776031,1.3048592,118110.0,118100.0,1.18889667]
[1753721776220,1.38051579,118110.0,118100.0,1.18889667]
[1753721776624,1.38051579,118110.0,118100.0,1.14313832]
[1753721777434,1.38051579,118110.0,118100.0,1.04927225]
[1753721778337,1.38051579,118110.0,118100.0,1.11797388]
[1753721779432,1.38051579,118110.0,118100.0,1.02645538]
[1753721779630,1.3048592,118110.0,118100.0,1.02645538]
[1753721779826,1.41116965,118110.0,118100.0,1.06223188]
[1753721780230,1.3048592,118110.0,118100.0,1.06223188]
[1753721780530,1.38105466,118110.0,118100.0,1.06223188]
[1753721781533,1.3048592,118110.0,118100.0,1.06223188]
[1753721781733,1.41116965,118110.0,118100.0,1.06223188]
[1753721785237,1.41116965,118110.0,118100.0,0.78403748]
[1753721785441,0.4568387,118100.0,118090.0,0.28057]
[1753721785640,1.09891,118100.0,118090.0,1.11582566]
[1753721785840,1.10536299,118100.0,118090.0,1.11582566]
[1753721786032,1.02917169,118100.0,118090.0,1.06990566]
[1753721786232,1.02917169,118100.0,118090.0,1.11582566]
[1753721786538,1.10536264,118100.0,118090.0,1.11582566]
[1753721787136,1.02917169,118100.0,118090.0,1.11582566]
[1753721787340,1.02917169,118100.0,118090.0,1.18272433]
[1753721787641,1.03017169,118100.0,118090.0,1.18272433]
[1753721790442,1.17926669,118100.0,118090.0,1.18272433]
[1753721792039,1.31986669,118100.0,118090.0,1.18272433]
[1753721794043,0.88615537,118100.0,118090.0,1.18272433]
[1753721794345,1.17926669,118100.0,118090.0,1.18272433]
[1753721796146,1.24021492,118100.0,118090.0,1.18272433]
[1753721796348,0.5657636,118100.0,118090.0,1.18272433]
[1753721796645,0.42115537,118100.0,118090.0,1.18272433]
[1753721796942,1.15655492,118100.0,118090.0,1.18272433]
[1753721798345,0.7228436,118100.0,118090.0,1.18272433]
[1753721798542,1.17926669,118100.0,118090.0,1.18272433]
[1753721800443,1.17859196,118100.0,118090.0,1.18272433]
[1753721800844,0.74488064,118100.0,118090.0,1.18272433]
[1753721801049,0.34042064,118100.0,118090.0,1.61643565]
[1753721801452,0.46884064,118100.0,118090.0,1.18272433]
[1753721801749,1.17859196,118100.0,118090.0,1.18272433]
[1753721802747,1.23954019,118100.0,118090.0,1.18272433]
[1753721803348,0.80582887,118100.0,118090.0,1.18272433]
[1753721805553,0.80582887,118100.0,118090.0,1.78579885]
[1753721805554,0.34042064,118100.0,118090.0,1.78579885]
[1753721805753,0.40135677,118100.0,118090.0,1.78579885]
[1753721806553,0.40135677,118100.0,118090.0,1.95515085]
[1753721806554,0.17107194,118100.0,118090.0,1.95515085]
[1753721806755,0.34042074,118100.0,118090.0,1.78579885]
[1753721808053,0.17107194,118100.0,118090.0,1.10339885]
[1753721808255,0.17107194,118100.0,118090.0,1.78679885]
[1753721808559,0.34042074,118100.0,118090.0,1.95615085]
[1753721809445,0.38878074,118100.0,118090.0,1.95615085]
[1753721809949,0.34042074,118100.0,118090.0,1.97819212]
[1753721810353,0.34042074,118100.0,118090.0,1.12542892]
[1753721810648,1.17859206,118100.0,118090.0,1.18344433]
[1753721811058,0.74488074,118100.0,118090.0,1.18344433]
[1753721812757,0.74488074,118100.0,118090.0,1.35280753]
[1753721813656,0.74488074,118100.0,118090.0,1.18344433]
[1753721814760,0.74488074,118100.0,118090.0,1.35280753]
[1753721814961,0.74488074,118100.0,118090.0,1.37484009]
[1753721815259,0.74488074,118100.0,118090.0,1.35280753]
[1753721815755,0.74488074,118100.0,118090.0,1.37483904]
[1753721815961,0.74488074,118100.0,118090.0,1.35280753]
[1753721816161,0.74488074,118100.0,118090.0,1.37475277]
[1753721816762,0.74488074,118100.0,118090.0,1.35280753]
[1753721817151,0.74488074,118100.0,118090.0,1.78651885]
[1753721818866,0.34042074,118100.0,118090.0,1.80846308]
[1753721820170,0.17107194,118100.0,118090.0,1.80846308]
[1753721820583,0.34042074,118100.0,118090.0,1.80846308]
[1753721820977,0.17107194,118100.0,118090.0,1.80846308]
[1753721821381,0.34042074,118100.0,118090.0,1.80846308]
[1753721821580,0.17107194,118100.0,118090.0,1.80846308]
[1753721822179,0.34042074,118100.0,118090.0,1.80846308]
[1753721826076,0.34042074,118100.0,118090.0,1.78651885]
[1753721828483,0.34042074,118100.0,118090.0,1.76651885]
[1753721828982,0.17107194,118100.0,118090.0,1.78841484]
[1753721829183,0.34042084,118100.0,118090.0,1.78841484]
[1753721831686,0.41979084,118100.0,118090.0,1.78841484]
[1753721831886,0.73756084,118100.0,118090.0,1.78841484]
[1753721832991,0.73656084,118100.0,118090.0,1.78841484]
[1753721833191,0.73856084,118100.0,118090.0,1.78841484]
[1753721833785,0.73756084,118100.0,118090.0,1.78841484]
[1753721834090,0.73856084,118100.0,118090.0,1.76651885]
[1753721834289,0.79949697,118100.0,118090.0,1.76651885]
[1753721836094,0.73856084,118100.0,118090.0,1.7884373]
[1753721837487,0.73856084,118100.0,118090.0,1.35392598]
[1753721837781,0.73856084,118100.0,118090.0,1.7876373]
[1753721839792,0.50034084,118100.0,118090.0,1.7876373]
[1753721840188,0.54687084,118100.0,118090.0,1.7876373]
[1753721844097,0.72689084,118100.0,118090.0,1.7876373]
[1753721844300,0.34142084,118100.0,118090.0,1.7876373]
[1753721845496,0.38970084,118100.0,118090.0,1.7876373]
[1753721846396,0.64783084,118100.0,118090.0,1.7876373]
[1753721846796,0.73043084,118100.0,118090.0,1.6793341]
[1753721847098,1.05583896,118100.0,118090.0,1.5099709]
[1753721847298,1.05583896,118100.0,118090.0,1.6793341]
[1753721848702,1.05583896,118100.0,118090.0,0.8276509]
[1753721848904,1.38124708,118100.0,118090.0,0.92233278]
[1753721849106,1.38124708,118100.0,118090.0,1.15461278]
[1753721849308,1.38124708,118100.0,118090.0,1.20168278]
[1753721849707,1.05583896,118100.0,118090.0,1.20168278]
[1753721850202,1.05583896,118100.0,118090.0,1.22075978]
[1753721850900,1.16438597,118100.0,118090.0,1.22075978]
[1753721854706,0.73043084,118100.0,118090.0,1.22075978]
[1753721855109,0.73043084,118100.0,118090.0,1.39012298]
[1753721855705,0.73043084,118100.0,118090.0,1.82407811]
[1753721856095,0.73043084,118100.0,118090.0,2.08697811]
[1753721857203,0.73043084,118100.0,118090.0,2.06505966]
[1753721857403,0.73043084,118100.0,118090.0,2.08690904]
[1753721858611,0.73043084,118100.0,118090.0,1.91754584]
[1753721859311,0.73043084,118100.0,118090.0,2.08690914]
[1753721859811,0.73043084,118100.0,118090.0,1.91754584]
[1753721860205,0.73043084,118100.0,118090.0,2.08690914]
[1753721860807,0.73043084,118100.0,118090.0,1.65295401]
[1753721865111,0.42120084,118100.0,118090.0,1.65295401]
[1753721865315,0.34142084,118100.0,118090.0,1.65295401]
[1753721865716,0.38970084,118100.0,118090.0,1.65295401]
[1753721866215,0.43631084,118100.0,118090.0,2.06505976]
[1753721866414,0.61633084,118100.0,118090.0,2.06505976]
[1753721866916,0.34142084,118100.0,118090.0,2.06505976]
[1753721868814,0.34163077,118100.0,118090.0,2.06505976]
[1753721869915,0.38991077,118100.0,118090.0,2.06505976]
[1753721870419,0.38991077,118100.0,118090.0,2.08691391]
[1753721871019,0.38991077,118100.0,118090.0,2.06505976]
[1753721872418,0.38991077,118100.0,118090.0,2.08691573]
[1753721872820,0.38991077,118100.0,118090.0,1.95649612]
[1753721876224,0.38991077,118100.0,118090.0,1.97835423]
[1753721878929,0.34163077,118100.0,118090.0,1.97835423]
[1753721882228,0.34163067,118100.0,118090.0,1.97835423]
[1753721882430,0.34163067,118100.0,118090.0,1.97803423]
[1753721882624,0.17228187,118100.0,118090.0,2.30342572]
[1753721882825,0.27260893,118110.0,118100.0,0.3257788]
[1753721883132,0.27900772,118110.0,118100.0,1.52952296]
[1753721883530,0.21807159,118110.0,118100.0,1.52952296]
[1753721883733,0.21807159,118110.0,118100.0,1.55143627]
[1753721884535,0.22007159,118110.0,118100.0,1.55143627]
[1753721884930,0.22307159,118110.0,118100.0,1.55243627]
[1753721885731,0.22307159,118110.0,118100.0,1.81533627]
[1753721886131,0.37116659,118110.0,118100.0,1.81533627]
[1753721893436,0.32883249,118110.0,118100.0,1.81533627]
[1753721894836,0.34335726,118110.0,118100.0,1.81533627]
[1753721895240,0.16761977,118110.0,118100.0,1.81533627]
[1753721896842,0.36771979,118130.0,118120.0,0.5555602]
[1753721896843,0.66221756,118130.0,118120.0,0.5555602]
[1753721897037,0.66221756,118130.0,118120.0,1.56263169]
[1753721897238,0.98760905,118130.0,118120.0,1.56263169]
[1753721897435,0.66221756,118130.0,118120.0,1.56263169]
[1753721897639,0.66221756,118130.0,118120.0,1.82553169]
[1753721898441,0.66721756,118130.0,118120.0,1.82553169]
[1753721898741,0.66921756,118130.0,118120.0,1.82653169]
[1753721899940,0.66921756,118130.0,118120.0,1.65721149]
[1753721900241,0.81731256,118130.0,118120.0,1.65721149]
[1753721902343,0.75637643,118130.0,118120.0,1.65721149]
[1753721903739,0.75637643,118130.0,118120.0,1.33182]
[1753721903939,1.14270405,118130.0,118120.0,0.2639]
[1753721904146,1.46809554,118130.0,118120.0,0.2639]
[1753721904340,1.46809554,118130.0,118120.0,0.94542]
[1753721904545,1.40715941,118130.0,118120.0,0.94542]
[1753721904741,1.19025466,118130.0,118120.0,0.94542]
[1753721905244,2.10438102,118130.0,118120.0,0.94538]
[1753721905641,1.67050279,118130.0,118120.0,0.94538]
[1753721905946,1.60956666,118130.0,118120.0,0.94538]
[1753721907241,1.35956666,118130.0,118120.0,0.94538]
[1753721907448,1.42050279,118130.0,118120.0,0.94538]
[1753721907746,1.35956666,118130.0,118120.0,0.94538]
[1753721908145,1.42050279,118130.0,118120.0,0.94538]
[1753721908735,1.43481259,118130.0,118120.0,0.94538]
[1753721909347,1.43481259,118130.0,118120.0,0.68248]
[1753721910242,0.1693345,118110.0,118100.0,0.1693411]
[1753721910545,1.01066253,118110.0,118100.0,1.2406211]
[1753721911347,0.5767843,118110.0,118100.0,1.2406211]
[1753721911645,0.5767843,118110.0,118100.0,1.2416211]
[1753721911646,0.5777843,118110.0,118100.0,1.2416211]
[1753721912045,1.01166253,118110.0,118100.0,1.07228]
[1753721913647,0.5086143,118110.0,118100.0,1.07228]
[1753721913848,0.5777843,118110.0,118100.0,1.07228]
[1753721914439,0.77932043,118110.0,118100.0,1.07228]
[1753721914642,1.21319866,118110.0,118100.0,1.07228]
[1753721914948,1.15226253,118110.0,118100.0,1.07228]
[1753721915451,1.30135753,118110.0,118100.0,1.07328]
[1753721916151,1.36229366,118110.0,118100.0,0.68344]
[1753721916354,1.30135753,118110.0,118100.0,0.6834]
[1753721916748,1.30135753,118110.0,118100.0,0.9086]
[1753721916953,1.30135753,118110.0,118100.0,1.02615]
[1753721917156,1.36229366,118110.0,118100.0,1.07324]
[1753721918356,1.36229366,118110.0,118100.0,0.6834]
[1753721919056,1.36229366,118110.0,118100.0,0.83008]
[1753721919255,1.36229366,118110.0,118100.0,0.9086]
[1753721919457,1.36229366,118110.0,118100.0,1.02615]
[1753721920051,1.30135753,118110.0,118100.0,1.02615]
[1753721920555,1.30135753,118110.0,118100.0,0.71492]
[1753721920759,1.30135753,118110.0,118100.0,0.83008]
[1753721920959,1.30135753,118110.0,118100.0,0.97993]
[1753721921156,1.30135753,118110.0,118100.0,1.02615]
[1753721921463,1.30135753,118110.0,118100.0,1.07324]
[1753721923264,1.30135753,118110.0,118100.0,0.39184]
[1753721923463,1.30135753,118110.0,118100.0,1.07316]
[1753721923665,1.30186166,118110.0,118100.0,1.07316]
[1753721926665,1.36267717,118110.0,118100.0,1.07316]
[1753721929565,0.92879894,118110.0,118100.0,1.07316]
[1753721929764,1.36267717,118110.0,118100.0,1.07316]
[1753721930868,1.25424137,118110.0,118100.0,1.07316]
[1753721932669,1.25424137,118110.0,118100.0,0.39184]
[1753721932870,1.25424137,118110.0,118100.0,1.07304]
[1753721934868,1.19342586,118110.0,118100.0,1.07197]
[1753721935566,1.25424137,118110.0,118100.0,1.07197]
[1753721937374,1.25425333,118110.0,118100.0,1.07197]
[1753721938473,0.9288109,118110.0,118100.0,1.07197]
[1753721938668,1.25425333,118110.0,118100.0,1.07197]
[1753721939675,1.25425333,118110.0,118100.0,1.39741243]
[1753721940763,1.25425333,118110.0,118100.0,1.07197]
[1753721941176,1.25425333,118110.0,118100.0,1.07185]
[1753721941477,1.25425333,118110.0,118100.0,1.39729243]
[1753721942380,1.25425333,118110.0,118100.0,1.07185]
[1753721944279,1.25426776,118110.0,118100.0,1.07185]
[1753721948585,1.25426776,118110.0,118100.0,0.39077]
[1753721948882,1.25426776,118110.0,118100.0,1.07177]
[1753721955688,1.25426776,118110.0,118100.0,1.39721243]
[1753721956288,1.19345225,118110.0,118100.0,1.39721243]
[1753721956887,1.19345225,118110.0,118100.0,1.07177]
[1753721959385,1.2696432,118110.0,118100.0,1.07177]
[1753721959989,1.19345225,118110.0,118100.0,1.02601411]
[1753721963586,1.19345225,118110.0,118100.0,0.34501411]
[1753721963792,1.19345225,118110.0,118100.0,1.02577411]
[1753721964298,1.2696432,118110.0,118100.0,1.02577411]
[1753721965384,1.2696432,118110.0,118100.0,0.34501411]
[1753721965589,1.2696432,118110.0,118100.0,1.02577411]
[1753721966292,1.25439479,118110.0,118100.0,1.02577411]
[1753721969198,1.57983722,118110.0,118100.0,1.02577411]
[1753721969498,1.11379479,118110.0,118100.0,1.02577411]
[1753721972786,0.39521236,118110.0,118100.0,1.35121654]
[1753721972989,1.04378225,118110.0,118100.0,1.37319168]
[1753721973296,1.04378225,118110.0,118100.0,0.69243168]
[1753721973592,1.04378225,118110.0,118100.0,1.35105654]
[1753721974694,1.04378225,118110.0,118100.0,1.02561411]
[1753721974893,1.04378225,118110.0,118100.0,1.35105654]
[1753721975997,1.10472479,118110.0,118100.0,1.35105654]
[1753721976197,0.91955479,118110.0,118100.0,0.6806]
[1753721976401,1.04378225,118110.0,118100.0,1.34080243]
[1753721977300,1.10472479,118110.0,118100.0,1.34080243]
[1753721977505,1.04378225,118110.0,118100.0,1.34080243]
[1753721978001,1.1199732,118110.0,118100.0,1.34080243]
[1753721978306,1.18089494,118110.0,118100.0,1.34080243]
[1753721978607,1.10470399,118110.0,118100.0,1.34080243]
[1753721978793,1.04378225,118110.0,118100.0,1.34080243]
[1753721979897,1.04378225,118110.0,118100.0,1.36302718]
[1753721981296,1.04378225,118110.0,118100.0,1.34080243]
[1753721981802,1.04378225,118110.0,118100.0,1.36302188]
[1753721982193,1.04378225,118110.0,118100.0,1.34080243]
[1753721986012,1.04378225,118110.0,118100.0,1.01536]
[1753721986307,1.04378225,118110.0,118100.0,1.34080243]
[1753721987211,0.67105982,118110.0,118100.0,1.34080243]
[1753721987412,0.71833982,118110.0,118100.0,1.66624486]
[1753721987611,1.04378225,118110.0,118100.0,1.66624486]
[1753721987812,1.04378225,118110.0,118100.0,1.34080243]
[1753721993724,1.04378225,118110.0,118100.0,0.70926243]
[1753721993925,1.04378225,118110.0,118100.0,1.38958243]
[1753721994329,1.04378225,118110.0,118100.0,1.06414]
[1753721994530,1.04378225,118110.0,118100.0,1.38958243]
[1753721994829,1.04378225,118110.0,118100.0,1.06414]
[1753721995030,1.04378225,118110.0,118100.0,1.38958243]
[1753721995430,1.04378225,118110.0,118100.0,1.06414]
[1753721995633,1.04378225,118110.0,118100.0,1.38958243]
[1753721999622,1.04378225,118110.0,118100.0,0.83388]
[1753721999821,1.04378225,118110.0,118100.0,0.9399]
[1753722000226,1.04378225,118110.0,118100.0,1.05969]
[1753722000733,1.10470399,118110.0,118100.0,1.05969]
[1753722001129,0.5592386,118100.0,118090.0,0.43710433]
[1753722001329,1.22496378,118100.0,118090.0,0.50777779]
[1753722001531,1.23141677,118100.0,118090.0,0.96220779]
[1753722001724,1.23141677,118100.0,118090.0,1.06822779]
[1753722002536,1.23141677,118100.0,118090.0,1.13955779]
[1753722002737,1.23141677,118100.0,118090.0,1.18801779]
[1753722002933,1.23241677,118100.0,118090.0,1.13955779]
[1753722003629,1.23241677,118100.0,118090.0,1.18801779]
[1753722003829,1.23341677,118100.0,118090.0,1.19001779]
[1753722005341,1.38151177,118100.0,118090.0,1.19001779]
[1753722005640,1.38151177,118100.0,118090.0,1.16780433]
[1753722006035,1.44240713,118100.0,118090.0,1.16780433]
[1753722006630,0.60683227,118100.0,118090.0,1.49324676]